fUST/lending_fUST_20260523
["ID","MTS","AMOUNT","RATE_DAILY","PERIOD"]
[422850081,1779522658000,-500.0,0.00010136,2]
[422850077,1779522658000,-2347.77,0.00010136,2]
[422850078,1779522658000,-500.0,0.00010136,2]
[422850079,1779522658000,-601.61,0.00010136,2]
[422850075,1779522658000,-549.99,0.00010136,2]
[422850074,1779522658000,-603.47,0.00010136,2]
[422850087,1779522658000,-447.33456967,0.00010136,2]
[422850080,1779522658000,-1062.93,0.00010136,2]
[422850086,1779522658000,-500.0,0.00010136,2]
[422850104,1779522658000,-725.61,0.00010136,2]
[422850089,1779522658000,-500.0,0.00010136,2]
[422850088,1779522658000,-823.17,0.00010136,2]
[422850091,1779522658000,-2784.25,0.00010136,2]
[422850092,1779522658000,-825.75,0.00010136,2]
[422850094,1779522658000,-1317.26,0.00010136,2]
[422850093,1779522658000,-2673.23,0.00010136,2]
[422850095,1779522658000,-500.0,0.00010136,2]
[422850096,1779522658000,-568.59,0.00010136,2]
[422850098,1779522658000,-2184.12,0.00010136,2]
[422850097,1779522658000,-500.0,0.00010136,2]
[422850101,1779522658000,-500.0,0.00010136,2]
[422850103,1779522658000,-1342.2,0.00010136,2]
[422850076,1779522658000,-500.0,0.00010136,2]
[422850090,1779522658000,-500.0,0.00010136,2]
[422850072,1779522658000,-500.0,0.00010136,2]
[422850047,1779522658000,-1062.36,0.00010136,2]
[422850071,1779522658000,-936.85,0.00010136,2]
[422850043,1779522658000,-930.87,0.00010136,2]
[422850044,1779522658000,-3836.07,0.00010136,2]
[422850045,1779522658000,-500.0,0.00010136,2]
[422850046,1779522658000,-500.0,0.00010136,2]
[422850050,1779522658000,-500.0,0.00010136,2]
[422850051,1779522658000,-500.0,0.00010136,2]
[422850052,1779522658000,-500.0,0.00010136,2]
[422850048,1779522658000,-500.0,0.00010136,2]
[422850049,1779522658000,-500.0,0.00010136,2]
[422850053,1779522658000,-500.0,0.00010136,2]
[422850054,1779522658000,-3771.01,0.00010136,2]
[422850055,1779522658000,-1044.87,0.00010136,2]
[422850056,1779522658000,-500.0,0.00010136,2]
[422850057,1779522658000,-553.08,0.00010136,2]
[422850058,1779522658000,-848.75,0.00010136,2]
[422850059,1779522658000,-1941.31,0.00010136,2]
[422850060,1779522658000,-500.0,0.00010136,2]
[422850061,1779522658000,-773.34,0.00010136,2]
[422850062,1779522658000,-583.52,0.00010136,2]
[422850063,1779522658000,-500.0,0.00010136,2]
[422850064,1779522658000,-500.0,0.00010136,2]
[422850065,1779522658000,-700.31,0.00010136,2]
[422850066,1779522658000,-500.0,0.00010136,2]
[422850067,1779522658000,-880.84,0.00010136,2]
[422850068,1779522658000,-627.4,0.00010136,2]
[422850069,1779522658000,-500.0,0.00010136,2]
[422850070,1779522658000,-1170.48,0.00010136,2]
[422850073,1779522658000,-903.24,0.00010136,2]
[422850102,1779522658000,-1096.02,0.00010136,2]
[422850152,1779522658000,-500.0,0.00010136,2]
[422850100,1779522658000,-516.78,0.00010136,2]
[422850135,1779522658000,-3777.66,0.00010136,2]
[422850136,1779522658000,-2296.31,0.00010136,2]
[422850143,1779522658000,-3408.86,0.00010136,2]
[422850139,1779522658000,-617.86,0.00010136,2]
[422850142,1779522658000,-3810.6,0.00010136,2]
[422850138,1779522658000,-1889.65,0.00010136,2]
[422850140,1779522658000,-7788.78,0.00010136,2]
[422850144,1779522658000,-500.0,0.00010136,2]
[422850137,1779522658000,-500.0,0.00010136,2]
[422850155,1779522658000,-500.0,0.00010136,2]
[422850157,1779522658000,-2218.95,0.00010136,2]
[422850156,1779522658000,-500.0,0.00010136,2]
[422850154,1779522658000,-4054.65,0.00010136,2]
[422850146,1779522658000,-836.05,0.00010136,2]
[422850158,1779522658000,-500.0,0.00010136,2]
[422850145,1779522658000,-894.62,0.00010136,2]
[422850147,1779522658000,-500.0,0.00010136,2]
[422850150,1779522658000,-4472.53,0.00010136,2]
[422850149,1779522658000,-500.0,0.00010136,2]
[422850148,1779522658000,-11343.66,0.00010136,2]
[422850151,1779522658000,-500.0,0.00010136,2]
[422850153,1779522658000,-8299.03,0.00010136,2]
[422850159,1779522658000,-500.0,0.00010136,2]
[422850161,1779522658000,-500.0,0.00010136,2]
[422850162,1779522658000,-4331.31,0.00010136,2]
[422850160,1779522658000,-1573.6,0.00010136,2]
[422850099,1779522658000,-500.0,0.00010136,2]
[422850133,1779522658000,-3803.04,0.00010136,2]
[422850141,1779522658000,-1214.59,0.00010136,2]
[422850163,1779522658000,-500.0,0.00010136,2]
[422850132,1779522658000,-2635.18,0.00010136,2]
[422850134,1779522658000,-167.59022704,0.00010136,2]
[422850114,1779522658000,-3822.56,0.00010136,2]
[422850105,1779522658000,-500.0,0.00010136,2]
[422850116,1779522658000,-919.44,0.00010136,2]
[422850115,1779522658000,-500.0,0.00010136,2]
[422850117,1779522658000,-500.0,0.00010136,2]
[422850106,1779522658000,-500.0,0.00010136,2]
[422850107,1779522658000,-500.0,0.00010136,2]
[422850110,1779522658000,-500.0,0.00010136,2]
[422850109,1779522658000,-5006.38,0.00010136,2]
[422850108,1779522658000,-7319.6,0.00010136,2]
[422850111,1779522658000,-2370.66,0.00010136,2]
[422850112,1779522658000,-950.0,0.00010136,2]
[422850113,1779522658000,-1906.95,0.00010136,2]
[422850119,1779522658000,-500.0,0.00010136,2]
[422850131,1779522658000,-500.0,0.00010136,2]
[422850130,1779522658000,-1016.89,0.00010136,2]
[422850128,1779522658000,-11669.11,0.00010136,2]
[422850125,1779522658000,-1298.03,0.00010136,2]
[422850118,1779522658000,-642.13,0.00010136,2]
[422850126,1779522658000,-592.52,0.00010136,2]
[422850127,1779522658000,-3632.74,0.00010136,2]
[422850122,1779522658000,-762.05,0.00010136,2]
[422850123,1779522658000,-500.0,0.00010136,2]
[422850121,1779522658000,-1534.57,0.00010136,2]
[422850120,1779522658000,-647.49,0.00010136,2]
[422850124,1779522658000,-500.0,0.00010136,2]
[422850129,1779522658000,-1407.6,0.00010136,2]
[422850207,1779522659000,-521.99,0.0001041,2]
[422850208,1779522659000,-237.04361799,0.0001041,2]
[422850206,1779522659000,-1669.62,0.0001041,2]
[422850202,1779522659000,-500.0,0.0001041,2]
[422850190,1779522659000,-223.74739016,0.00010234,2]
[422850199,1779522659000,-882.1112,0.0001041,2]
[422850198,1779522659000,-1764.2063,0.0001041,2]
[422850200,1779522659000,-1764.2063,0.0001041,2]
[422850196,1779522659000,-623.93,0.0001041,2]
[422850195,1779522659000,-934.38,0.0001041,2]
[422850201,1779522659000,-661.5754,0.0001041,2]
[422850204,1779522659000,-805.78,0.0001041,2]
[422850213,1779522659000,-500.0,0.0001041,2]
[422850203,1779522659000,-546.66,0.0001041,2]
[422850209,1779522659000,-550.5,0.0001041,2]
[422850217,1779522659000,-500.0,0.0001041,2]
[422850210,1779522659000,-500.0,0.0001041,2]
[422850211,1779522659000,-973.74,0.0001041,2]
[422850212,1779522659000,-500.0,0.0001041,2]
[422850214,1779522659000,-500.0,0.0001041,2]
[422850219,1779522659000,-500.0,0.0001041,2]
[422850215,1779522659000,-1019.6,0.0001041,2]
[422850220,1779522659000,-500.0,0.0001041,2]
[422850218,1779522659000,-1159.16,0.0001041,2]
[422850197,1779522659000,-500.0,0.0001041,2]
[422850205,1779522659000,-521.15,0.0001041,2]
[422850194,1779522659000,-10158.55085257,0.000104,2]
[422850183,1779522659000,-160.0,0.00010137,2]
[422850193,1779522659000,-451.974569,0.0001031,2]
[422850164,1779522659000,-560.81,0.00010136,2]
[422850165,1779522659000,-3166.04,0.00010136,2]
[422850167,1779522659000,-698.28,0.00010136,2]
[422850168,1779522659000,-8529.45,0.00010136,2]
[422850166,1779522659000,-2034.71,0.00010136,2]
[422850169,1779522659000,-500.0,0.00010136,2]
[422850176,1779522659000,-500.0,0.00010136,2]
[422850171,1779522659000,-3345.98,0.00010136,2]
[422850173,1779522659000,-500.0,0.00010136,2]
[422850170,1779522659000,-500.0,0.00010136,2]
[422850172,1779522659000,-500.0,0.00010136,2]
[422850175,1779522659000,-4349.05,0.00010136,2]
[422850192,1779522659000,-10158.55085257,0.000103,2]
[422850174,1779522659000,-1014.97,0.00010136,2]
[422850180,1779522659000,-2740.95,0.00010136,2]
[422850182,1779522659000,-500.0,0.00010137,2]
[422850179,1779522659000,-1491.3,0.00010136,2]
[422850181,1779522659000,-891.69,0.00010136,2]
[422850184,1779522659000,-2473.843387,0.00010149,2]
[422850188,1779522659000,-2105.364724,0.000102,2]
[422850186,1779522659000,-227.579292,0.00010155,2]
[422850185,1779522659000,-2193.360398,0.00010149,2]
[422850187,1779522659000,-241.88591984,0.00010157,2]
[422850177,1779522659000,-53596.31,0.00010136,2]
[422850189,1779522659000,-10158.55085257,0.000102,2]
[422850191,1779522659000,-603.886498,0.0001025,2]
[422850178,1779522659000,-500.0,0.00010136,2]
[422850216,1779522659000,-531.93,0.0001041,2]
[422850234,1779522659000,-236.35286451,0.0001041,2]
[422850223,1779522659000,-500.0,0.0001041,2]
[422850255,1779522659000,-500.0,0.0001041,2]
[422850256,1779522659000,-500.0,0.0001041,2]
[422850258,1779522659000,-500.0,0.0001041,2]
[422850253,1779522659000,-500.0,0.0001041,2]
[422850257,1779522659000,-500.0,0.0001041,2]
[422850261,1779522659000,-3771.01,0.0001041,2]
[422850260,1779522659000,-500.0,0.0001041,2]
[422850259,1779522659000,-500.0,0.0001041,2]
[422850263,1779522659000,-500.0,0.0001041,2]
[422850264,1779522659000,-553.08,0.0001041,2]
[422850262,1779522659000,-1044.87,0.0001041,2]
[422850265,1779522659000,-848.75,0.0001041,2]
[422850254,1779522659000,-1062.36,0.0001041,2]
[422850266,1779522659000,-1941.31,0.0001041,2]
[422850267,1779522659000,-500.0,0.0001041,2]
[422850270,1779522659000,-500.0,0.0001041,2]
[422850269,1779522659000,-583.52,0.0001041,2]
[422850268,1779522659000,-773.34,0.0001041,2]
[422850272,1779522659000,-700.31,0.0001041,2]
[422850273,1779522659000,-500.0,0.0001041,2]
[422850277,1779522659000,-1170.48,0.0001041,2]
[422850274,1779522659000,-880.84,0.0001041,2]
[422850275,1779522659000,-627.4,0.0001041,2]
[422850276,1779522659000,-500.0,0.0001041,2]
[422850278,1779522659000,-936.85,0.0001041,2]
[422850221,1779522659000,-1237.95,0.0001041,2]
[422850271,1779522659000,-500.0,0.0001041,2]
[422850252,1779522659000,-500.0,0.0001041,2]
[422850279,1779522659000,-500.0,0.0001041,2]
[422850248,1779522659000,-2455.94,0.0001041,2]
[422850244,1779522659000,-1873.78,0.0001041,2]
[422850222,1779522659000,-497.7285186,0.0001041,2]
[422850226,1779522659000,-670.18,0.0001041,2]
[422850227,1779522659000,-1659.56,0.0001041,2]
[422850233,1779522659000,-1624.28,0.0001041,2]
[422850236,1779522659000,-684.52,0.0001041,2]
[422850230,1779522659000,-500.0,0.0001041,2]
[422850235,1779522659000,-1479.12,0.0001041,2]
[422850225,1779522659000,-551.16,0.0001041,2]
[422850228,1779522659000,-500.0,0.0001041,2]
[422850231,1779522659000,-760.63,0.0001041,2]
[422850237,1779522659000,-511.26,0.0001041,2]
[422850232,1779522659000,-549.31,0.0001041,2]
[422850224,1779522659000,-500.0,0.0001041,2]
[422850238,1779522659000,-1188.89,0.0001041,2]
[422850250,1779522659000,-930.87,0.0001041,2]
[422850246,1779522659000,-500.0,0.0001041,2]
[422850249,1779522659000,-500.0,0.0001041,2]
[422850229,1779522659000,-500.0,0.0001041,2]
[422850247,1779522659000,-500.0,0.0001041,2]
[422850251,1779522659000,-3836.07,0.0001041,2]
[422850243,1779522659000,-924.25,0.0001041,2]
[422850242,1779522659000,-1397.34,0.0001041,2]
[422850239,1779522659000,-339.77703752,0.0001041,2]
[422850241,1779522659000,-500.0,0.0001041,2]
[422850240,1779522659000,-500.0,0.0001041,2]
[422850245,1779522659000,-500.0,0.0001041,2]
[422850316,1779522660000,-500.0,0.0001041,2]
[422850315,1779522660000,-5006.38,0.0001041,2]
[422850317,1779522660000,-2370.66,0.0001041,2]
[422850312,1779522660000,-500.0,0.0001041,2]
[422850307,1779522660000,-582.13898903,0.0001041,2]
[422850314,1779522660000,-7319.6,0.0001041,2]
[422850311,1779522660000,-491.81374482,0.0001041,2]
[422850300,1779522660000,-1317.26,0.0001041,2]
[422850303,1779522660000,-500.0,0.0001041,2]
[422850313,1779522660000,-500.0,0.0001041,2]
[422850319,1779522660000,-1906.95,0.0001041,2]
[422850324,1779522660000,-642.13,0.0001041,2]
[422850323,1779522660000,-500.0,0.0001041,2]
[422850322,1779522660000,-919.44,0.0001041,2]
[422850320,1779522660000,-3822.56,0.0001041,2]
[422850321,1779522660000,-500.0,0.0001041,2]
[422850327,1779522660000,-1534.57,0.0001041,2]
[422850325,1779522660000,-500.0,0.0001041,2]
[422850330,1779522660000,-500.0,0.0001041,2]
[422850329,1779522660000,-500.0,0.0001041,2]
[422850326,1779522660000,-647.49,0.0001041,2]
[422850301,1779522660000,-500.0,0.0001041,2]
[422850332,1779522660000,-592.52,0.0001041,2]
[422850318,1779522660000,-950.0,0.0001041,2]
[422850302,1779522660000,-568.59,0.0001041,2]
[422850298,1779522660000,-2673.23,0.0001041,2]
[422850305,1779522660000,-500.0,0.0001041,2]
[422850331,1779522660000,-1298.03,0.0001041,2]
[422850280,1779522660000,-903.24,0.0001041,2]
[422850285,1779522660000,-500.0,0.0001041,2]
[422850284,1779522660000,-2347.77,0.0001041,2]
[422850281,1779522660000,-603.47,0.0001041,2]
[422850282,1779522660000,-549.99,0.0001041,2]
[422850286,1779522660000,-601.61,0.0001041,2]
[422850283,1779522660000,-500.0,0.0001041,2]
[422850287,1779522660000,-1062.93,0.0001041,2]
[422850289,1779522660000,-532.29,0.0001041,2]
[422850290,1779522660000,-500.0,0.0001041,2]
[422850309,1779522660000,-1342.2,0.0001041,2]
[422850288,1779522660000,-500.0,0.0001041,2]
[422850293,1779522660000,-500.0,0.0001041,2]
[422850291,1779522660000,-500.0,0.0001041,2]
[422850296,1779522660000,-500.0,0.0001041,2]
[422850297,1779522660000,-2784.25,0.0001041,2]
[422850294,1779522660000,-823.17,0.0001041,2]
[422850295,1779522660000,-500.0,0.0001041,2]
[422850299,1779522660000,-825.75,0.0001041,2]
[422850306,1779522660000,-516.78,0.0001041,2]
[422850310,1779522660000,-725.61,0.0001041,2]
[422850308,1779522660000,-1096.02,0.0001041,2]
[422850304,1779522660000,-2184.12,0.0001041,2]
[422850292,1779522660000,-588.33,0.0001041,2]
[422850333,1779522660000,-3632.74,0.0001041,2]
[422850328,1779522660000,-762.05,0.0001041,2]
[422850335,1779522660000,-1407.6,0.0001041,2]
[422850369,1779522660000,-560.81,0.0001041,2]
[422850368,1779522660000,-500.0,0.0001041,2]
[422850364,1779522660000,-500.0,0.0001041,2]
[422850365,1779522660000,-1573.6,0.0001041,2]
[422850366,1779522660000,-500.0,0.0001041,2]
[422850371,1779522660000,-2034.71,0.0001041,2]
[422850370,1779522660000,-3166.04,0.0001041,2]
[422850367,1779522660000,-4331.31,0.0001041,2]
[422850372,1779522660000,-698.28,0.0001041,2]
[422850373,1779522660000,-8529.45,0.0001041,2]
[422850375,1779522660000,-500.0,0.0001041,2]
[422850363,1779522660000,-500.0,0.0001041,2]
[422850381,1779522660000,-442.12195228,0.0001041,2]
[422850382,1779522660000,-53596.31,0.0001041,2]
[422850378,1779522660000,-500.0,0.0001041,2]
[422850377,1779522660000,-500.0,0.0001041,2]
[422850383,1779522660000,-500.0,0.0001041,2]
[422850379,1779522660000,-1014.97,0.0001041,2]
[422850384,1779522660000,-1491.3,0.0001041,2]
[422850385,1779522660000,-2740.95,0.0001041,2]
[422850376,1779522660000,-3345.98,0.0001041,2]
[422850386,1779522660000,-891.69,0.0001041,2]
[422850387,1779522660000,-500.0,0.00010411,2]
[422850336,1779522660000,-1016.89,0.0001041,2]
[422850380,1779522660000,-4349.05,0.0001041,2]
[422850362,1779522660000,-2218.95,0.0001041,2]
[422850374,1779522660000,-500.0,0.0001041,2]
[422850360,1779522660000,-500.0,0.0001041,2]
[422850334,1779522660000,-11669.11,0.0001041,2]
[422850361,1779522660000,-500.0,0.0001041,2]
[422850344,1779522660000,-617.86,0.0001041,2]
[422850346,1779522660000,-1214.59,0.0001041,2]
[422850340,1779522660000,-3777.66,0.0001041,2]
[422850345,1779522660000,-7788.78,0.0001041,2]
[422850343,1779522660000,-1889.65,0.0001041,2]
[422850341,1779522660000,-2296.31,0.0001041,2]
[422850337,1779522660000,-500.0,0.0001041,2]
[422850347,1779522660000,-3810.6,0.0001041,2]
[422850342,1779522660000,-153.94602866,0.0001041,2]
[422850348,1779522660000,-3408.86,0.0001041,2]
[422850338,1779522660000,-2635.18,0.0001041,2]
[422850339,1779522660000,-3803.04,0.0001041,2]
[422850358,1779522660000,-8299.03,0.0001041,2]
[422850357,1779522660000,-500.0,0.0001041,2]
[422850355,1779522660000,-4472.53,0.0001041,2]
[422850359,1779522660000,-4054.65,0.0001041,2]
[422850354,1779522660000,-500.0,0.0001041,2]
[422850356,1779522660000,-500.0,0.0001041,2]
[422850353,1779522660000,-11343.66,0.0001041,2]
[422850352,1779522660000,-500.0,0.0001041,2]
[422850349,1779522660000,-273.1234098,0.0001041,2]
[422850351,1779522660000,-836.05,0.0001041,2]
[422850350,1779522660000,-894.62,0.0001041,2]
[422850428,1779522661000,-1237.95,0.00010684,2]
[422850439,1779522661000,-1624.28,0.00010684,2]
[422850436,1779522661000,-500.0,0.00010684,2]
[422850435,1779522661000,-500.0,0.00010684,2]
[422850429,1779522661000,-500.0,0.00010684,2]
[422850422,1779522661000,-1019.6,0.00010684,2]
[422850423,1779522661000,-531.93,0.00010684,2]
[422850425,1779522661000,-1159.16,0.00010684,2]
[422850427,1779522661000,-500.0,0.00010684,2]
[422850415,1779522661000,-521.99,0.00010684,2]
[422850424,1779522661000,-500.0,0.00010684,2]
[422850437,1779522661000,-760.63,0.00010684,2]
[422850421,1779522661000,-500.0,0.00010684,2]
[422850438,1779522661000,-549.31,0.00010684,2]
[422850441,1779522661000,-684.52,0.00010684,2]
[422850430,1779522661000,-500.0,0.00010684,2]
[422850431,1779522661000,-551.16,0.00010684,2]
[422850432,1779522661000,-670.18,0.00010684,2]
[422850434,1779522661000,-500.0,0.00010684,2]
[422850443,1779522661000,-1188.89,0.00010684,2]
[422850440,1779522661000,-1479.12,0.00010684,2]
[422850446,1779522661000,-1397.34,0.00010684,2]
[422850448,1779522661000,-1873.78,0.00010684,2]
[422850442,1779522661000,-511.26,0.00010684,2]
[422850444,1779522661000,-500.0,0.00010684,2]
[422850450,1779522661000,-500.0,0.00010684,2]
[422850445,1779522661000,-500.0,0.00010684,2]
[422850426,1779522661000,-500.0,0.00010684,2]
[422850433,1779522661000,-1659.56,0.00010684,2]
[422850418,1779522661000,-973.74,0.00010684,2]
[422850394,1779522661000,-10158.55085257,0.000105,2]
[422850420,1779522661000,-250.66851605,0.00010684,2]
[422850449,1779522661000,-500.0,0.00010684,2]
[422850388,1779522661000,-3738.133315,0.00010439,2]
[422850392,1779522661000,-151.5531853,0.00010491,2]
[422850391,1779522661000,-151.0,0.00010491,2]
[422850390,1779522661000,-151.0,0.00010491,2]
[422850393,1779522661000,-456.6813334,0.00010491,2]
[422850398,1779522661000,-1000.0,0.00010588,2]
[422850395,1779522661000,-325.9506488,0.00010553,2]
[422850389,1779522661000,-179.0,0.00010456,2]
[422850399,1779522661000,-10158.55085257,0.000106,2]
[422850397,1779522661000,-325.97254,0.00010553,2]
[422850396,1779522661000,-151.0,0.00010553,2]
[422850400,1779522661000,-699.179937,0.00010632,2]
[422850406,1779522661000,-1764.2063,0.00010684,2]
[422850402,1779522661000,-604.83515,0.00010632,2]
[422850403,1779522661000,-934.38,0.00010684,2]
[422850401,1779522661000,-195.243887,0.00010632,2]
[422850408,1779522661000,-1764.2063,0.00010684,2]
[422850412,1779522661000,-805.78,0.00010684,2]
[422850411,1779522661000,-546.66,0.00010684,2]
[422850407,1779522661000,-882.1112,0.00010684,2]
[422850410,1779522661000,-500.0,0.00010684,2]
[422850409,1779522661000,-661.5754,0.00010684,2]
[422850413,1779522661000,-521.15,0.00010684,2]
[422850405,1779522661000,-500.0,0.00010684,2]
[422850404,1779522661000,-623.93,0.00010684,2]
[422850414,1779522661000,-1669.62,0.00010684,2]
[422850417,1779522661000,-500.0,0.00010684,2]
[422850416,1779522661000,-550.5,0.00010684,2]
[422850419,1779522661000,-500.0,0.00010684,2]
[422850447,1779522661000,-924.25,0.00010684,2]
[422850514,1779522661000,-500.0,0.00010684,2]
[422850451,1779522661000,-500.0,0.00010684,2]
[422850488,1779522661000,-2347.77,0.00010684,2]
[422850486,1779522661000,-549.99,0.00010684,2]
[422850483,1779522661000,-500.0,0.00010684,2]
[422850490,1779522661000,-601.61,0.00010684,2]
[422850489,1779522661000,-500.0,0.00010684,2]
[422850492,1779522661000,-500.0,0.00010684,2]
[422850491,1779522661000,-1062.93,0.00010684,2]
[422850493,1779522661000,-532.29,0.00010684,2]
[422850501,1779522661000,-2784.25,0.00010684,2]
[422850500,1779522661000,-500.0,0.00010684,2]
[422850496,1779522661000,-588.33,0.00010684,2]
[422850497,1779522661000,-500.0,0.00010684,2]
[422850494,1779522661000,-500.0,0.00010684,2]
[422850484,1779522661000,-903.24,0.00010684,2]
[422850495,1779522661000,-500.0,0.00010684,2]
[422850498,1779522661000,-823.17,0.00010684,2]
[422850499,1779522661000,-500.0,0.00010684,2]
[422850503,1779522661000,-825.75,0.00010684,2]
[422850504,1779522661000,-1317.26,0.00010684,2]
[422850506,1779522661000,-568.59,0.00010684,2]
[422850507,1779522661000,-500.0,0.00010684,2]
[422850505,1779522661000,-500.0,0.00010684,2]
[422850508,1779522661000,-2184.12,0.00010684,2]
[422850453,1779522661000,-500.0,0.00010684,2]
[422850509,1779522661000,-500.0,0.00010684,2]
[422850513,1779522661000,-725.61,0.00010684,2]
[422850511,1779522661000,-1096.02,0.00010684,2]
[422850510,1779522661000,-516.78,0.00010684,2]
[422850502,1779522661000,-2673.23,0.00010684,2]
[422850485,1779522661000,-603.47,0.00010684,2]
[422850512,1779522661000,-1342.2,0.00010684,2]
[422850479,1779522661000,-627.4,0.00010684,2]
[422850452,1779522661000,-2455.94,0.00010684,2]
[422850487,1779522661000,-500.0,0.00010684,2]
[422850454,1779522661000,-930.87,0.00010684,2]
[422850457,1779522661000,-500.0,0.00010684,2]
[422850459,1779522661000,-431.20004021,0.00010684,2]
[422850460,1779522661000,-500.0,0.00010684,2]
[422850455,1779522661000,-3836.07,0.00010684,2]
[422850456,1779522661000,-500.0,0.00010684,2]
[422850461,1779522661000,-500.0,0.00010684,2]
[422850463,1779522661000,-500.0,0.00010684,2]
[422850462,1779522661000,-500.0,0.00010684,2]
[422850465,1779522661000,-3771.01,0.00010684,2]
[422850472,1779522661000,-773.34,0.00010684,2]
[422850473,1779522661000,-583.52,0.00010684,2]
[422850458,1779522661000,-1062.36,0.00010684,2]
[422850475,1779522661000,-500.0,0.00010684,2]
[422850482,1779522661000,-936.85,0.00010684,2]
[422850476,1779522661000,-700.31,0.00010684,2]
[422850481,1779522661000,-1170.48,0.00010684,2]
[422850467,1779522661000,-500.0,0.00010684,2]
[422850470,1779522661000,-1941.31,0.00010684,2]
[422850477,1779522661000,-546.55155264,0.00010684,2]
[422850478,1779522661000,-880.84,0.00010684,2]
[422850480,1779522661000,-500.0,0.00010684,2]
[422850471,1779522661000,-500.0,0.00010684,2]
[422850469,1779522661000,-848.75,0.00010684,2]
[422850474,1779522661000,-500.0,0.00010684,2]
[422850466,1779522661000,-1044.87,0.00010684,2]
[422850464,1779522661000,-235.41722619,0.00010684,2]
[422850468,1779522661000,-553.08,0.00010684,2]
[422850558,1779522662000,-4054.65,0.00010684,2]
[422850550,1779522662000,-894.62,0.00010684,2]
[422850551,1779522662000,-836.05,0.00010684,2]
[422850548,1779522662000,-3810.6,0.00010684,2]
[422850545,1779522662000,-617.86,0.00010684,2]
[422850546,1779522662000,-7788.78,0.00010684,2]
[422850552,1779522662000,-11343.66,0.00010684,2]
[422850542,1779522662000,-3777.66,0.00010684,2]
[422850549,1779522662000,-3408.86,0.00010684,2]
[422850544,1779522662000,-1889.65,0.00010684,2]
[422850557,1779522662000,-8299.03,0.00010684,2]
[422850562,1779522662000,-500.0,0.00010684,2]
[422850554,1779522662000,-4472.53,0.00010684,2]
[422850555,1779522662000,-500.0,0.00010684,2]
[422850560,1779522662000,-601.42742349,0.00010684,2]
[422850559,1779522662000,-500.0,0.00010684,2]
[422850561,1779522662000,-2218.95,0.00010684,2]
[422850556,1779522662000,-500.0,0.00010684,2]
[422850564,1779522662000,-1573.6,0.00010684,2]
[422850572,1779522662000,-8529.45,0.00010684,2]
[422850573,1779522662000,-500.0,0.00010684,2]
[422850547,1779522662000,-1214.59,0.00010684,2]
[422850574,1779522662000,-500.0,0.00010684,2]
[422850553,1779522662000,-500.0,0.00010684,2]
[422850543,1779522662000,-2296.31,0.00010684,2]
[422850530,1779522662000,-762.05,0.00010684,2]
[422850540,1779522662000,-2635.18,0.00010684,2]
[422850565,1779522662000,-500.0,0.00010684,2]
[422850515,1779522662000,-500.0,0.00010684,2]
[422850516,1779522662000,-7319.6,0.00010684,2]
[422850518,1779522662000,-500.0,0.00010684,2]
[422850517,1779522662000,-5006.38,0.00010684,2]